fUSD/lending_fUSD_20250428
["ID","MTS","AMOUNT","RATE_DAILY","PERIOD"]
[359248283,1745868643277,-252.979349,0.00035316,7]
[359248284,1745868643286,-542.722123,0.00035316,7]
[359248285,1745868643296,-542.722123,0.00035316,7]
[359248286,1745868643305,-309.29654756,0.00035325,2]
[359248287,1745868643315,-151.0,0.00035326,7]
[359248288,1745868643325,-150.0,0.00035328,2]
[359248289,1745868643335,-500.0,0.00035373,5]
[359248290,1745868643344,-1112.35438768,0.00035555,12]
[359248291,1745868643353,-1000.0,0.00035616,2]
[359248292,1745868643363,-1000.0,0.00035616,2]
[359248293,1745868643372,-1000.0,0.00035616,2]
[359248294,1745868643381,-1000.0,0.00035616,2]
[359248295,1745868643390,-1000.0,0.00035616,2]
[359248296,1745868643400,-1000.0,0.00035616,2]
[359248297,1745868643409,-1000.0,0.00035616,2]
[359248298,1745868643418,-1000.0,0.00035616,2]
[359248299,1745868643428,-1000.0,0.00035616,2]
[359248300,1745868643437,-500.0,0.00035616,2]
[359248301,1745868643446,-152.0,0.00035764,19]
[359248302,1745868643456,-505.9,0.00035835,2]
[359248303,1745868643465,-151.0,0.00035896,7]
[359248304,1745868643474,-618.53245654,0.000359,2]
[359248305,1745868643485,-4937.58711588,0.000359,2]
[359248306,1745868643494,-151.0,0.0003592,7]
[359248307,1745868643504,-151.0,0.0003592,7]
[359248308,1745868643515,-151.0,0.0003592,7]
[359248309,1745868643524,-151.0,0.0003592,7]
[359248310,1745868643534,-151.0,0.0003592,7]
[359248311,1745868643544,-151.0,0.0003592,7]
[359248312,1745868643553,-201.98206484,0.0003592,2]
[359248313,1745868643563,-500.0,0.00035929,10]
[359248314,1745868643572,-271466.82802185,0.0003593,7]
[359248315,1745868643582,-151.0,0.0003593,7]
[359248316,1745868643592,-151.0,0.0003593,7]
[359248317,1745868643601,-151.0,0.0003593,7]
[359248318,1745868643611,-151.0,0.0003593,7]
[359248319,1745868643621,-151.0,0.0003593,7]
[359248321,1745868643630,-286.131792,0.0003593,7]
[359248322,1745868643639,-151.0,0.0003593,7]
[359248323,1745868643648,-151.0,0.0003593,7]
[359248324,1745868643658,-542.722123,0.0003593,7]
[359248325,1745868643668,-542.722123,0.0003593,7]
[359248326,1745868643677,-263.142182,0.0003593,7]
[359248327,1745868643687,-263.142182,0.0003593,7]
[359248328,1745868643697,-151.0,0.0003593,7]
[359248329,1745868643706,-220.168471,0.0003593,7]
[359248330,1745868643716,-220.168471,0.0003593,7]
[359248331,1745868643725,-288.146883,0.0003593,7]
[359248332,1745868643734,-288.146883,0.0003593,7]
[359248334,1745868643743,-151.0,0.0003593,7]
[359248336,1745868643752,-151.0,0.0003593,7]
[359248338,1745868643761,-151.0,0.0003593,7]
[359248340,1745868643771,-151.0,0.0003593,7]
[359248341,1745868643780,-157.78,0.0003599,2]
[359248342,1745868643788,-500.0,0.00035999,10]
[359248343,1745868643798,-114610.9076736,0.00036,2]
[359248345,1745868644222,-2169.1,0.00036,2]
[359248346,1745868644234,-1135.96567531,0.00036,2]
[359248347,1745868644265,-2177.6,0.00036,2]
[359248348,1745868644300,-2677.87338584,0.00036,2]
[359248349,1745868646225,-172.890526,0.0003012,7]
[359248350,1745868646235,-151.0,0.0003012,7]
[359248351,1745868646245,-172.890526,0.0003012,7]
[359248352,1745868646254,-151.0,0.0003012,7]
[359248353,1745868646264,-151.0,0.000331,7]
[359248354,1745868646274,-151.0,0.000331,7]
[359248355,1745868646283,-172.890526,0.0003329,7]
[359248356,1745868646292,-172.890526,0.0003329,7]
[359248357,1745868646302,-172.890526,0.0003497,7]
[359248358,1745868646314,-172.890526,0.0003497,7]
[359248359,1745868646328,-151.0,0.0003497,7]
[359248360,1745868646338,-172.890526,0.00035,7]
[359248361,1745868646347,-172.890526,0.0003593,7]
[359248362,1745868646357,-58630.99228211,0.00036,2]
[359248370,1745868657545,2948.9262765,0.00038356,120]
[359248371,1745868750035,302.9989862,0.00038356,30]
[359248372,1745868778913,1048.65,0.00038356,120]
[359248373,1745868847190,559.9692131,0.00037759,44]
[359248374,1745868905181,1702.94,0.000191,2]
[359248375,1745868990786,250.0,0.00017,2]
[359248376,1745868992129,300.0,0.00019,2]
[359248377,1745869045439,500.0,0.00038356,120]
[359248378,1745869109468,358.467,0.00032659,33]
[359248379,1745869205240,1362.35,0.000191,2]
[359248380,1745869352998,1053.0,0.00036986,60]
[359248381,1745869447651,940.0,0.00038356,30]
[359248382,1745869503592,941.0,0.00038356,30]
[359248383,1745869523756,500.0,0.0003835,30]
[359248384,1745869524158,470.0,0.00038356,30]
[359248385,1745869543404,940.0,0.00038356,30]
[359248386,1745869588228,500.0,0.0003835,30]
[359248387,1745869601511,500.0,0.0003835,30]
[359248388,1745869623085,515.087989,0.0003835,30]
[359248389,1745869701812,500.0,0.00038356,120]
[359248390,1745869722260,1004.96,0.00038356,120]
[359248391,1745869754001,21580.0,0.00038356,30]
[359248392,1745869805775,2094.52,0.000191,2]
[359248408,1745869832221,-200.0,0.00019986,2]
[359248409,1745869832230,-250.0,0.00020003,2]
[359248410,1745869832241,-250.0,0.00020117,2]
[359248411,1745869832250,-200.0,0.00020126,2]
[359248412,1745869832260,-207.4,0.00020266,2]
[359248413,1745869832271,-350.0,0.00021,2]
[359248414,1745869832280,-108.11600315,0.000211,2]
[359248415,1745869832300,-668.59142846,0.000211,2]
[359248416,1745869832359,-631.60865575,0.000211,2]
[359248417,1745869832378,-294.62391264,0.000211,2]
[359248418,1745869832388,-1674.23224065,0.00021345,2]
[359248419,1745869832401,-151.0,0.00021423,2]
[359248420,1745869832411,-151.0,0.00021424,2]
[359248421,1745869832420,-151.0,0.00021424,2]
[359248422,1745869832429,-151.0,0.00021425,2]
[359248423,1745869832438,-151.0,0.00021426,2]
[359248424,1745869832447,-215.0738,0.00021635,2]
[359248425,1745869832457,-200.0,0.0002197,2]
[359248426,1745869832466,-200.0,0.00021984,2]
[359248427,1745869832476,-250.0,0.00021984,2]
[359248428,1745869832485,-241.011312,0.00022232,2]
[359248429,1745869832496,-305.51,0.00022344,2]
[359248430,1745869832506,-300.0,0.00022559,2]
[359248431,1745869832517,-1200.0,0.0002256,2]
[359248432,1745869832527,-300.0,0.00022561,2]
[359248433,1745869832537,-299.99,0.00022562,7]
[359248434,1745869832547,-1010.04,0.00022562,2]
[359248435,1745869832559,-150.99,0.00022562,2]
[359248436,1745869832569,-150.99,0.00022562,2]
[359248437,1745869832578,-999.99,0.00022562,2]
[359248438,1745869832587,-1093.63,0.00022644,2]
[359248439,1745869832596,-153.43,0.00022644,2]
[359248440,1745869832606,-1000.0,0.00022644,2]
[359248441,1745869832615,-1000.0,0.00022644,2]
[359248442,1745869832625,-736.94812682,0.000229,4]
[359248443,1745869832636,-400.0,0.00023,2]
[359248444,1745869832648,-223.0315306,0.00023004,2]
[359248445,1745869832657,-166.66,0.00023323,2]
[359248446,1745869832667,-736.9481268,0.00023693,4]
[359248447,1745869832677,-920.0,0.00023699,2]
[359248448,1745869832686,-872.0,0.00023699,2]
[359248449,1745869832696,-3996.0,0.00023699,2]
[359248450,1745869832705,-494.57075603,0.00023791,2]
[359248451,1745869832714,-1174.83827302,0.0002402,2]
[359248452,1745869832724,-166.66,0.00024093,2]
[359248453,1745869832733,-231.28369723,0.00024373,2]
[359248454,1745869832742,-736.9481268,0.00024486,5]
[359248455,1745869832752,-200.0,0.000245,2]
[359248456,1745869832761,-300.0,0.000245,2]
[359248457,1745869832771,-420.0,0.00024503,2]
[359248458,1745869832782,-1680.0,0.00024615,2]
[359248459,1745869832792,-166.66,0.00024863,2]
[359248460,1745869832801,-450.0,0.00025,2]
[359248461,1745869832810,-736.9481268,0.00025279,5]
[359248462,1745869832820,-1000.0,0.00025475,2]
[359248463,1745869832830,-18804.58442338,0.0002551,2]
[359248464,1745869832843,-2120.89557662,0.0002551,2]
[359248465,1745869832853,-166.66,0.00025633,2]
[359248466,1745869832862,-239.84119403,0.00025742,2]
[359248467,1745869832871,-235.95646344,0.0002589,2]
[359248468,1745869832886,-320.93353656,0.0002589,2]
[359248469,1745869832898,-265.49656767,0.00026072,6]
[359248473,1745869837396,-471.45155913,0.00026072,6]
[359248474,1745869837406,-553.08,0.00026075,2]
[359248475,1745869837416,-1000.0,0.00026276,2]
[359248476,1745869837426,-166.66,0.00026403,2]
[359248477,1745869837436,-587.0,0.00026611,2]
[359248478,1745869837449,-2144.0,0.00026699,2]
[359248479,1745869837460,-2351.0,0.00026858,2]
[359248480,1745869837472,-736.9481268,0.00026866,7]
[359248481,1745869837482,-200.0,0.00026946,2]
[359248482,1745869837491,-500.0,0.00027,2]
[359248483,1745869837501,-7988.22,0.0002703,2]
[359248484,1745869837511,-248.71531821,0.00027111,2]
[359248485,1745869837521,-166.66,0.00027173,2]
[359248486,1745869837531,-1003.16,0.00027251,2]
[359248487,1745869837540,-1000.0,0.00027397,2]
[359248488,1745869837549,-150.0,0.00027397,2]
[359248489,1745869837559,-300.0,0.00027397,2]
[359248490,1745869837568,-736.9481268,0.00027659,7]
[359248491,1745869837577,-20706.59,0.00028009,2]
[359248492,1745869837586,-150.0,0.00028118,2]
[359248493,1745869837596,-556.89,0.00028154,2]
[359248494,1745869837605,-1000.0,0.00028305,2]
[359248495,1745869837614,-5118.51,0.00028451,2]
[359248496,1745869837624,-736.9481268,0.00028452,8]
[359248497,1745869837633,-257.91778498,0.0002848,2]
[359248498,1745869837644,-11635.93,0.00028725,2]
[359248499,1745869837653,-150.0,0.00028725,2]
[359248500,1745869837664,-551.0,0.00028725,2]
[359248501,1745869837675,-571.0,0.00028725,2]
[359248502,1745869837686,-151.79939127,0.00028725,2]
[359248503,1745869837696,-150.0,0.00028725,2]
[359248504,1745869837706,-500.0,0.00028725,2]
[359248505,1745869837715,-500.0,0.00028725,2]
[359248507,1745869837726,-500.0,0.00028725,2]
[359248509,1745869837736,-500.0,0.00028725,2]
[359248511,1745869837746,-150.0,0.00028725,2]
[359248513,1745869837755,-200.0,0.00028752,2]
[359248515,1745869837765,-551.0,0.00028752,2]
[359248517,1745869837774,-571.0,0.00028752,2]
[359248519,1745869837783,-150.0,0.00028752,2]
[359248521,1745869837792,-634.40263361,0.00028752,2]
[359248523,1745869837801,-500.0,0.00028752,2]
[359248525,1745869837811,-500.0,0.00028752,2]
[359248527,1745869837820,-500.0,0.00028752,2]
[359248529,1745869837829,-200.0,0.00028752,2]
[359248531,1745869837838,-551.0,0.0002878,2]
[359248532,1745869837848,-571.0,0.0002878,2]
[359248534,1745869837858,-219.8498121,0.0002878,2]
[359248536,1745869837867,-500.0,0.0002878,2]
[359248538,1745869837876,-500.0,0.0002878,2]
[359248540,1745869837886,-642.62447159,0.0002878,2]
[359248542,1745869837897,-300.65,0.00028783,2]
[359248544,1745869837906,-551.0,0.00028807,2]
[359248546,1745869837915,-571.0,0.00028807,2]
[359248548,1745869837925,-500.0,0.00028807,2]
[359248550,1745869837934,-500.0,0.00028807,2]
[359248552,1745869837943,-551.0,0.00028835,2]
[359248554,1745869837953,-571.0,0.00028835,2]
[359248577,1745869838157,-500.0,0.00028835,2]
[359248579,1745869838167,-500.0,0.00028835,2]
[359248581,1745869838178,-150.0,0.00028839,2]
[359248583,1745869838187,-551.0,0.00028862,2]
[359248585,1745869838196,-571.0,0.00028862,2]
[359248587,1745869838209,-500.0,0.00028862,2]
[359248589,1745869838218,-500.0,0.00028862,2]
[359248591,1745869838228,-551.0,0.00028889,2]
[359248593,1745869838237,-571.0,0.00028889,2]
[359248595,1745869838247,-500.0,0.00028889,2]
[359248597,1745869838257,-500.0,0.00028889,2]
[359248599,1745869838266,-823.0,0.00028901,2]
[359248600,1745869838279,-551.0,0.00028917,2]
[359248602,1745869838289,-571.0,0.00028917,2]
[359248604,1745869838300,-500.0,0.00028917,2]
[359248606,1745869838310,-500.0,0.00028917,2]
[359248608,1745869838319,-551.0,0.00028944,2]
[359248610,1745869838329,-571.0,0.00028944,2]
[359248612,1745869838338,-500.0,0.00028944,2]
[359248614,1745869838348,-500.0,0.00028944,2]
[359248616,1745869838357,-551.0,0.00028972,2]
[359248618,1745869838367,-571.0,0.00028972,2]
[359248620,1745869838377,-500.0,0.00028972,2]
[359248621,1745869838387,-500.0,0.00028972,2]
[359248623,1745869838397,-360.13,0.00028989,2]
[359248625,1745869838406,-551.0,0.00028999,2]
[359248627,1745869838415,-571.0,0.00028999,2]
[359248629,1745869838424,-500.0,0.00028999,2]
[359248630,1745869838433,-500.0,0.00028999,2]
[359248632,1745869838444,-550.0,0.00029,2]
[359248635,1745869838454,-551.0,0.00029026,2]
[359248636,1745869838464,-571.0,0.00029026,2]
[359248638,1745869838474,-500.0,0.00029026,2]
[359248640,1745869838484,-500.0,0.00029026,2]
[359248642,1745869838493,-551.0,0.00029054,2]
[359248644,1745869838504,-571.0,0.00029054,2]
[359248646,1745869838514,-500.0,0.00029054,2]
[359248648,1745869838524,-500.0,0.00029054,2]
[359248650,1745869838533,-551.0,0.00029081,2]
[359248652,1745869838543,-571.0,0.00029081,2]
[359248654,1745869838552,-500.0,0.00029081,2]
[359248656,1745869838562,-500.0,0.00029081,2]
[359248658,1745869838571,-551.0,0.00029109,2]
[359248660,1745869838581,-571.0,0.00029109,2]
[359248662,1745869838591,-163.79625622,0.00029109,2]
[359248664,1745869838600,-500.0,0.00029109,2]
[359248666,1745869838609,-551.0,0.00029136,2]
[359248667,1745869838619,-571.0,0.00029136,2]
[359248668,1745869838629,-500.0,0.00029136,2]
[359248669,1745869838638,-551.0,0.00029163,2]
[359248670,1745869838649,-571.0,0.00029163,2]
[359248671,1745869838659,-500.0,0.00029163,2]
[359248672,1745869838668,-551.0,0.00029191,2]
[359248673,1745869838678,-571.0,0.00029191,2]
[359248674,1745869838688,-340.85530564,0.00029191,2]
[359248675,1745869838697,-551.0,0.00029218,2]
[359248676,1745869838707,-571.0,0.00029218,2]
[359248677,1745869838718,-736.9481268,0.00029245,8]
[359248678,1745869838728,-551.0,0.00029246,2]
[359248679,1745869838738,-571.0,0.00029246,2]
[359248680,1745869838747,-551.0,0.00029273,2]
[359248681,1745869838756,-571.0,0.00029273,2]
[359248682,1745869838765,-551.0,0.000293,2]
[359248683,1745869838775,-571.0,0.000293,2]
[359248684,1745869838784,-1778.0,0.00029305,2]
[359248685,1745869838794,-551.0,0.00029328,2]
[359248686,1745869838803,-571.0,0.00029328,2]
[359248687,1745869838813,-562.74717219,0.00029355,2]
[359248688,1745869838822,-577.54032129,0.00029355,2]
[359248689,1745869838833,-249.47451439,0.00029359,2]
[359248690,1745869838843,-183.36043621,0.00029359,2]
[359248691,1745869838852,-173.39097348,0.00029359,2]
[359248692,1745869838863,-500.0,0.00029359,2]
[359248693,1745869838873,-500.0,0.00029359,2]
[359248694,1745869838885,-302.03949615,0.00029359,2]
[359248695,1745869838894,-500.0,0.00029359,2]
[359248696,1745869838904,-500.0,0.00029359,2]
[359248697,1745869838914,-500.0,0.00029359,2]
[359248698,1745869838923,-500.0,0.00029359,2]
[359248699,1745869838933,-150.0,0.0002956,2]
[359248700,1745869838942,-267.46074303,0.00029849,2]
[359248701,1745869838952,-736.9481268,0.00030038,9]
[359248702,1745869838962,-531.34,0.00030137,2]
[359248703,1745869838972,-150.0,0.00030281,2]
[359248704,1745869838982,-360.13,0.00030359,2]
[359248705,1745869838992,-556.89,0.00030417,2]
[359248706,1745869839002,-152.0,0.00030458,3]
[359248707,1745869839011,-736.9481268,0.00030831,9]
[359248708,1745869839021,-600.0,0.00031,2]
[359248709,1745869839030,-150.0,0.00031002,2]
[359248710,1745869839039,-250.0,0.00031051,7]
[359248711,1745869839049,-1000.0,0.00031136,2]
[359248712,1745869839059,-300.0,0.0003115,2]
[359248713,1745869839068,-277.35679052,0.00031218,2]
[359248714,1745869839077,-1152.0,0.00031387,2]
[359248715,1745869839088,-152.0,0.0003156,4]
[359248716,1745869839097,-736.9481268,0.00031624,10]
[359248717,1745869839107,-1093.63,0.00031702,2]
[359248718,1745869839117,-150.0,0.00031723,2]
[359248719,1745869839127,-360.13,0.00031729,2]
[359248720,1745869839136,-736.9481268,0.00032417,10]
[359248721,1745869839146,-150.0,0.00032444,2]
[359248722,1745869839156,-300.0,0.0003252,2]
[359248723,1745869839165,-287.61899177,0.00032587,2]
[359248724,1745869839175,-152.0,0.00032662,5]
[359248725,1745869839184,-556.89,0.00032681,2]
[359248726,1745869839194,-650.0,0.00033,2]
[359248727,1745869839206,-1068.66455563,0.00033,2]
[359248728,1745869839216,-360.13,0.00033099,2]
[359248730,1745869839225,-1000.0,0.00033165,2]
[359248731,1745869839235,-150.0,0.00033165,2]
[359248732,1745869839244,-13482.0,0.00033172,2]
[359248733,1745869839254,-736.9481268,0.0003321,11]
[359248734,1745869839263,-372.12950576,0.000337,2]
[359248735,1745869839272,-3510.17,0.00033762,2]
[359248736,1745869839284,-152.0,0.00033764,6]
[359248738,1745869839294,-150.0,0.00033886,2]
[359248739,1745869839303,-298.26089446,0.00033956,2]
[359248740,1745869839313,-1000.0,0.00033966,2]
[359248741,1745869839323,-153.43,0.00033966,2]
[359248742,1745869839333,-736.9481268,0.00034003,11]
[359248743,1745869839345,-1613.0,0.00034088,2]
[359248744,1745869839354,-562.8124079,0.00034199,4]
[359248745,1745869839365,-360.13,0.00034469,2]
[359248746,1745869839374,-150.0,0.00034548,10]
[359248747,1745869839386,-150.0,0.00034607,2]
[359248748,1745869839396,-736.9481268,0.00034797,12]
[359248749,1745869839406,-152.0,0.00034866,7]
[359248750,1745869839416,-556.89,0.00034945,2]
[359248751,1745869839426,-700.0,0.00035,2]
[359248752,1745869839436,-888.0,0.00035,5]
[359248753,1745869839446,-309.29654756,0.00035325,2]
[359248755,1745869839456,-150.0,0.00035328,2]
[359248757,1745869839466,-3510.17,0.0003545,2]
[359248758,1745869839476,-736.9481268,0.0003559,12]
[359248759,1745869839486,-360.13,0.00035839,2]
[359248760,1745869839496,-507.0595,0.000359,2]
[359248761,1745869839507,-8830.8044,0.000359,2]
[359248762,1745869839516,-455.09702143,0.000359,15]
[359248763,1745869839528,-4849.03485889,0.00035949,2]
[359248764,1745869839538,-152.0,0.00035968,8]
[359248765,1745869839547,-177.0,0.00035972,5]
[359248766,1745869839557,-508.12496352,0.00035973,5]
[359248767,1745869839566,-154.48252298,0.00035973,5]
[359248768,1745869839576,-500.0,0.00035973,5]
[359248769,1745869839586,-38002.8139789,0.0003599,2]
[359248770,1745869839595,-467.48187374,0.00035999,7]
[359248771,1745869839605,-45733.39416626,0.00036,2]
[359248772,1745869839615,-4000.0,0.00036,2]
[359248773,1745869839624,-646.18273218,0.00036,2]
[359248774,1745869839634,-6000.0,0.00036,2]
[359248775,1745869839644,-294.48025892,0.00036,2]
[359248776,1745869839654,-107139.15604311,0.00036,2]
[359248777,1745869839663,-150.0,0.00036049,2]
[359248778,1745869839672,-912.88,0.00036112,2]
[359248779,1745869839682,-211.98812332,0.00036277,2]
[359248780,1745869839692,-500.0,0.00036335,2]
[359248781,1745869839701,-736.9481268,0.00036383,13]
[359248782,1745869839711,-500.0,0.00036438,2]
[359248783,1745869839721,-455.09702134,0.00036466,15]
[359248785,1745869839730,-365.42376709,0.00036493,14]
[359248786,1745869839739,-250.0,0.000365,7]
[359248787,1745869839749,-320.74051982,0.00036694,2]
[359248788,1745869839758,-500.0,0.00036712,2]
[359248789,1745869839767,-150.0,0.00036712,2]
[359248790,1745869839776,-150.0,0.0003677,2]
[359248791,1745869839786,-947.6446,0.0003689,2]
[359248792,1745869839795,-304.03,0.00036939,2]
[359248793,1745869839805,-500.0,0.00036986,2]
[359248794,1745869839815,-969.91,0.00037,2]
[359248795,1745869839824,-29210.72951948,0.00037,2]
[359248796,1745869839834,-1000.0,0.00037,5]
[359248797,1745869839848,-1000.0,0.00037,5]
[359248798,1745869839857,-1000.0,0.00037,5]
[359248799,1745869839867,-750.0,0.00037,2]
[359248800,1745869839877,-1027.0,0.00037021,2]
[359248801,1745869839886,-455.09702134,0.00037032,15]
[359248802,1745869839897,-152.0,0.0003707,9]
[359248803,1745869839907,-1254.1,0.00037084,5]
[359248804,1745869839921,-3510.17,0.00037138,2]
[359248805,1745869839930,-200.0,0.00037162,2]
[359248806,1745869839940,-736.9481268,0.00037176,13]
[359248807,1745869839949,-360.13,0.00037209,2]
[359248808,1745869839959,-556.89,0.00037209,2]
[359248809,1745869839969,-500.0,0.0003726,2]
[359248810,1745869839978,-150.0,0.00037369,2]
[359248811,1745869839988,-1047.97373739,0.0003741,5]
[359248813,1745869840000,-1134.03509487,0.0003741,5]
[359248814,1745869840010,-150.0,0.00037423,2]
[359248815,1745869840020,-38002.8139789,0.00037445,2]
[359248816,1745869840030,-1067.56342306,0.00037455,5]
[359248817,1745869840040,-1073.9351754,0.00037455,5]
[359248818,1745869840050,-150.0,0.00037468,2]
[359248819,1745869840059,-169.0254,0.00037483,2]
[359248820,1745869840068,-308.2786,0.00037483,2]
[359248821,1745869840078,-2639.48639557,0.0003749,2]
[359248822,1745869840087,-150.0,0.00037491,2]
[359248823,1745869840097,-150.0,0.00037507,2]
[359248824,1745869840107,-150.0,0.00037513,2]
[359248825,1745869840117,-150.0,0.00037525,2]
[359248826,1745869840127,-500.0,0.00037534,2]
[359248827,1745869840137,-1106.60085579,0.00037534,5]
[359248828,1745869840148,-1116.9217115,0.00037534,5]
[359248829,1745869840158,-150.0,0.00037534,2]
[359248830,1745869840167,-161.95,0.00037534,2]
[359248831,1745869840177,-150.0,0.00037534,2]
[359248832,1745869840187,-351.59,0.00037534,2]
[359248833,1745869840197,-150.0,0.00037534,2]
[359248834,1745869840209,-2331.32,0.00037534,2]
[359248835,1745869840219,-150.0,0.00037534,2]
[359248836,1745869840228,-351.59,0.00037534,2]
[359248837,1745869840238,-150.0,0.00037534,2]
[359248838,1745869840249,-351.59,0.00037534,2]
[359248839,1745869840258,-150.0,0.00037534,2]
[359248840,1745869840268,-150.0,0.00037534,2]
[359248841,1745869840279,-351.59,0.00037534,2]
[359248842,1745869840289,-150.0,0.00037534,2]
[359248843,1745869840298,-150.0,0.00037566,2]
[359248845,1745869840307,-1103.4393429,0.00037583,5]
[359248846,1745869840317,-1028.18523359,0.00037583,5]
[359248848,1745869840326,-1046.68857065,0.00037583,5]
[359248850,1745869840335,-1027.43760503,0.00037583,5]
[359248852,1745869840345,-1144.5318102,0.00037583,5]
[359248853,1745869840354,-500.0,0.00037583,5]
[359248854,1745869840364,-500.0,0.00037583,5]
[359248855,1745869840374,-1149.39609213,0.00037589,5]
[359248857,1745869840383,-1047.78250945,0.00037589,5]
[359248859,1745869840392,-1015.61173669,0.00037589,5]
[359248861,1745869840402,-1042.21401346,0.00037589,5]
[359248863,1745869840411,-1029.41767991,0.00037589,5]
[359248865,1745869840421,-1120.97925787,0.00037589,5]
[359248867,1745869840430,-1021.40262165,0.00037589,5]
[359248870,1745869840440,-1137.98055101,0.00037589,5]
[359248872,1745869840449,-1147.77113623,0.00037589,5]
[359248874,1745869840458,-1148.89913093,0.00037589,5]
[359248876,1745869840468,-1049.92338077,0.00037589,5]
[359248878,1745869840478,-1087.37221808,0.00037589,5]
[359248880,1745869840487,-1142.64724072,0.00037589,5]
[359248894,1745869840655,-1118.12994346,0.00037589,5]
[359248896,1745869840666,-1117.95049372,0.00037589,5]
[359248898,1745869840675,-1047.40983243,0.00037589,5]
[359248900,1745869840685,-1076.65761236,0.00037589,5]
[359248902,1745869840695,-1197.64671308,0.00037589,5]
[359248903,1745869840705,-4206.22580751,0.0003759,2]
[359248904,1745869840715,-455.09702134,0.00037598,15]
[359248905,1745869840726,-500.0,0.0003761,5]
[359248906,1745869840736,-500.59528374,0.0003761,5]
[359248907,1745869840745,-150.0,0.00037615,2]
[359248908,1745869840756,-1045.63421992,0.00037632,5]
[359248909,1745869840765,-591.22573512,0.00037638,5]
[359248910,1745869840775,-150.0,0.00037663,2]
[359248911,1745869840784,-150.0,0.00037675,2]
[359248912,1745869840794,-150.0,0.00037693,2]
[359248913,1745869840804,-150.0,0.00037703,2]
[359248914,1745869840814,-150.0,0.00037728,2]
[359248915,1745869840824,-150.0,0.00037742,2]
[359248916,1745869840834,-150.0,0.00037774,2]
[359248917,1745869840845,-150.0,0.00037796,2]
[359248918,1745869840855,-150.0,0.00037798,2]
[359248919,1745869840865,-714.0,0.000378,4]
[359248920,1745869840875,-168.45431022,0.000378,2]
[359248921,1745869840885,-500.0,0.00037808,2]
[359248922,1745869840894,-38002.8139789,0.00037854,2]
[359248923,1745869840904,-150.0,0.00037872,2]
[359248924,1745869840914,-150.0,0.00037888,2]
[359248925,1745869840924,-150.0,0.00037908,2]
[359248926,1745869840934,-150.0,0.00037935,2]
[359248927,1745869840944,-643.43160686,0.00037947,5]
[359248928,1745869840954,-156.99,0.00037969,2]
[359248929,1745869840963,-736.9481268,0.00037969,14]
[359248930,1745869840973,-2621.91655391,0.00037979,21]
[359248931,1745869840982,-1390.98114829,0.00038,10]
[359248932,1745869840993,-19203.33557664,0.00038,2]
[359248933,1745869841003,-1541.29456778,0.00038,15]
[359248934,1745869841012,-1000.0,0.00038,9]
[359248935,1745869841022,-1000.0,0.00038,8]
[359248936,1745869841031,-1000.0,0.00038,7]
[359248937,1745869841040,-1000.0,0.00038,6]
[359248938,1745869841050,-1000.0,0.00038,5]
[359248939,1745869841059,-1000.0,0.00038,5]
[359248940,1745869841068,-150.0,0.00038034,2]
[359248941,1745869841078,-150.0,0.00038045,2]
[359248942,1745869841087,-332.60791905,0.00038063,2]